bitfinex/quotes_SOLUSD_20250815
["timestamp","ask_amount","ask_price","bid_price","bid_amount"]
[1755288402472,8.04971744,183.99,183.94,8.07971744]
[1755288402670,8.04971744,183.97,183.94,0.03]
[1755288402875,8.04971744,183.95,183.94,0.03]
[1755288403274,8.72971744,183.95,183.94,0.03]
[1755288403653,8.04971744,183.96,183.94,0.03]
[1755288404076,8.72971744,183.96,183.94,0.03]
[1755288404678,0.68,183.96,183.94,0.03]
[1755288404884,5.43458227,184.01,183.95,8.04971744]
[1755288405057,3.57729048,184.0,183.95,8.04971744]
[1755288405259,3.57729048,183.99,183.95,8.04971744]
[1755288405454,14.16429971,184.01,183.95,8.04971744]
[1755288405669,8.04971744,183.97,183.94,0.03]
[1755288405960,8.04971744,183.99,183.94,8.07971744]
[1755288406272,3.5796699,183.98,183.95,8.04971744]
[1755288406471,0.72,183.99,183.95,8.04971744]
[1755288406673,3.58017871,183.98,183.95,13.48580918]
[1755288406892,0.72,183.99,183.95,13.48580918]
[1755288407190,3.58017871,183.98,183.94,13.51624814]
[1755288407370,3.58017871,183.97,183.94,13.51624814]
[1755288407569,0.06,184.02,183.96,8.04971744]
[1755288407774,0.06,184.02,184.01,8.04971744]
[1755288408163,3.64858603,184.02,184.01,8.04971744]
[1755288409087,4.36858603,184.02,183.96,5.43596434]
[1755288409274,3.58858603,184.01,183.99,8.04971744]
[1755288409479,4.30858603,184.0,183.96,5.43596434]
[1755288409676,4.30858603,183.99,183.95,53.62591274]
[1755288409990,4.30858603,183.98,183.95,40.14]
[1755288410159,3.58858603,183.97,183.95,40.14]
[1755288410363,3.58858603,183.96,183.95,40.14]
[1755288410565,4.30858603,183.96,183.94,0.03]
[1755288410766,4.30858603,183.95,183.94,0.03]
[1755288410978,9.74484588,183.95,183.94,0.03]
[1755288411390,4.30858603,183.95,183.94,0.03]
[1755288411687,9.74484588,183.95,183.94,0.03]
[1755288412194,3.58858603,183.95,183.94,0.03]
[1755288412694,12.35830347,183.95,183.94,0.03]
[1755288412889,16.80685426,183.95,183.94,0.03]
[1755288413388,16.87080272,183.95,183.92,0.03]
[1755288413569,8.82108528,183.94,183.92,0.03]
[1755288413770,39.58832704,183.99,183.92,0.51]
[1755288413771,3.58858603,183.93,183.92,0.51]
[1755288413970,3.58858603,183.93,183.92,8.07971744]
[1755288414173,44.63249925,184.0,183.92,8.07971744]
[1755288414400,3.61003326,183.99,183.95,8.04971744]
[1755288414672,3.61003326,183.98,183.95,8.04971744]
[1755288414874,3.61003326,183.97,183.95,8.04971744]
[1755288415081,20.05387794,184.01,183.95,8.04971744]
[1755288415289,14.20423447,184.01,183.95,8.04971744]
[1755288415581,0.72,184.01,183.95,5.43620244]
[1755288415780,0.72,184.01,183.96,8.04971744]
[1755288415982,8.04971744,183.98,183.92,0.03]
[1755288416188,8.76971744,183.97,183.92,0.03]
[1755288416395,8.04971744,183.95,183.92,0.03]
[1755288416709,8.04971744,183.93,183.92,0.03]
[1755288416874,12.37662504,183.93,183.92,0.03]
[1755288417675,3.6069076,183.93,183.92,0.03]
[1755288419191,8.04971744,183.95,183.92,0.03]
[1755288419492,3.60632315,183.94,183.92,0.03]
[1755288419683,3.60621249,183.93,183.92,0.03]
[1755288420799,8.76971744,183.95,183.92,0.03]
[1755288420983,3.60636351,183.94,183.92,0.03]
[1755288421182,44.6286345,183.98,183.92,0.03]
[1755288421398,6.07151267,184.01,183.95,8.04971744]
[1755288421399,3.60750409,183.97,183.95,8.04971744]
[1755288421697,0.06,184.01,183.96,8.52971744]
[1755288421924,0.06,184.01,184.0,8.04971744]
[1755288422293,0.06,184.01,184.0,8.52971744]
[1755288422479,0.06,184.03,184.0,9.0731957]
[1755288422678,1e-08,184.02,184.01,49.63593301]
[1755288422880,1e-08,184.03,184.01,49.63593301]
[1755288423202,1e-08,184.03,184.02,23.63593301]
[1755288423411,0.06,184.06,184.02,23.63593301]
[1755288423412,0.06,184.06,184.05,26.0]
[1755288423606,0.06,184.06,184.05,66.1]
[1755288423778,0.06,184.06,184.05,74.14971744]
[1755288423972,0.06,184.06,184.05,76.32652844]
[1755288424676,0.06,184.06,184.05,76.80652844]
[1755288425399,0.06,184.06,184.05,82.2398346]
[1755288425702,0.06,184.06,184.05,53.5830236]
[1755288427076,0.06,184.06,184.05,54.0630236]
[1755288431085,0.06,184.08,184.05,148.91256978]
[1755288431284,0.06,184.12,184.11,41.10621557]
[1755288431285,1e-08,184.12,184.11,41.10621557]
[1755288431593,1e-08,184.12,184.11,94.6674685]
[1755288431990,1e-08,184.12,184.11,81.73711793]
[1755288432212,1e-08,184.12,184.11,96.8433335]
[1755288433600,1e-08,184.12,184.11,81.73711793]
[1755288433800,1e-08,184.12,184.11,15.65711793]
[1755288434000,1e-08,184.12,184.11,55.71711793]
[1755288434307,0.72000001,184.12,184.11,42.235865]
[1755288434619,0.72000001,184.12,184.11,40.06]
[1755288436124,1e-08,184.12,184.11,53.54125293]
[1755288436622,0.70000001,184.12,184.11,40.06]
[1755288436824,0.70000001,184.12,184.11,48.10971744]
[1755288436990,1e-08,184.12,184.11,53.54125293]
[1755288437190,0.70000001,184.12,184.11,48.10971744]
[1755288437417,0.70000001,184.12,184.11,40.06]
[1755288438114,14.18095794,184.12,184.09,40.04]
[1755288438303,13.48095794,184.12,184.09,40.04]
[1755288438509,8.04971744,184.1,184.05,8.04971744]
[1755288438708,0.7,184.11,184.06,40.04]
[1755288438889,8.74971744,184.11,184.06,40.04]
[1755288439086,8.04971744,184.11,184.06,40.04]
[1755288439295,0.7,184.1,184.06,40.04]
[1755288439495,0.7,184.09,184.06,40.04]
[1755288440614,0.7,184.08,184.06,40.04]
[1755288440828,0.7,184.07,184.02,5.431241]
[1755288441020,8.74971744,184.07,184.03,40.04]
[1755288441324,0.7,184.09,184.04,8.04971744]
[1755288441619,5.4316222,184.11,184.05,40.04]
[1755288441821,8.04971744,184.09,184.05,40.04]
[1755288442122,0.7,184.08,184.05,40.04]
[1755288442324,8.74971744,184.1,184.05,40.04]
[1755288442623,8.74971744,184.09,184.05,40.04]
[1755288442797,0.7,184.09,184.05,40.04]
[1755288442993,0.7,184.08,184.05,40.04]
[1755288443308,0.7,184.07,184.02,0.03]
[1755288443621,14.18264578,184.07,184.03,40.04]
[1755288443791,14.18264578,184.07,184.02,0.03]
[1755288443792,8.04971744,184.05,184.02,0.03]
[1755288443996,8.04971744,184.04,184.02,0.03]
[1755288444227,0.7,184.04,184.02,0.03]
[1755288444399,8.04971744,184.05,184.02,0.03]
[1755288444593,5.43292834,184.07,184.02,0.03]
[1755288444594,0.7,184.04,184.02,0.03]
[1755288444807,5.43292834,184.07,184.02,0.03]
[1755288444808,0.7,184.05,184.02,0.03]
[1755288445014,0.7,184.03,184.02,0.03]
[1755288445222,8.74971744,184.03,184.02,0.03]
[1755288445525,0.7,184.03,184.02,0.03]
[1755288447326,14.18361408,184.03,184.02,0.03]
[1755288447621,14.18361408,184.03,184.0,0.03]
[1755288447822,8.04971744,184.01,184.0,0.03]
[1755288448121,26.0,183.99,183.98,0.03]
[1755288448340,34.04971744,183.99,183.98,0.03]
[1755288448629,34.74971744,183.99,183.98,0.03]
[1755288449817,40.18479543,183.99,183.98,0.03]
[1755288450745,26.7,183.99,183.98,0.03]
[1755288450911,34.74971744,183.99,183.98,0.03]
[1755288451228,40.18479543,183.99,183.98,0.03]
[1755288452422,26.0,184.0,183.98,0.03]
[1755288452806,8.74971744,184.04,183.99,8.04971744]
[1755288453003,8.74971744,184.03,183.98,0.03]
[1755288453303,0.7,184.03,183.98,0.03]
[1755288453520,34.04971744,184.01,183.98,0.03]
[1755288453709,0.7,184.0,183.98,0.03]
[1755288454229,15.10621557,184.04,183.98,0.03]
[1755288454230,8.04971744,184.02,183.98,0.03]
[1755288454441,8.04971744,184.02,183.98,5.46537341]
[1755288454603,8.74971744,184.02,183.98,5.46537341]
[1755288454804,0.7,184.02,183.98,13.51509085]
[1755288455007,0.7,184.02,183.98,5.46537341]
[1755288455214,8.04971744,184.0,183.98,0.03]
[1755288455746,8.74971744,184.03,183.98,0.03]
[1755288455935,8.74971744,184.03,183.98,8.07971744]
[1755288456108,8.74971744,184.02,183.98,0.03]
[1755288456530,8.74971744,184.01,183.98,0.03]
[1755288456838,8.04971744,184.0,183.98,0.03]
[1755288457150,40.04,184.05,183.99,8.04971744]
[1755288457313,8.04971744,184.05,184.0,8.04971744]
[1755288457517,8.04971744,184.05,183.98,0.03]
[1755288457518,8.74971744,184.04,183.98,8.07971744]
[1755288458040,8.74971744,184.04,183.99,8.04971744]
[1755288458340,0.7,184.03,183.99,13.48455282]
[1755288458838,0.06,184.07,184.02,8.04971744]
[1755288459017,0.7,184.06,184.03,8.04971744]
[1755288459216,0.7,184.05,184.02,48.06971744]
[1755288459722,0.06,184.07,184.04,8.04971744]
[1755288459933,0.06,184.07,184.06,8.04971744]
[1755288460236,0.06,184.07,184.03,0.54]
[1755288460425,0.06,184.07,184.06,13.48272841]
[1755288461140,0.06,184.07,184.06,8.04971744]
[1755288461328,0.06,184.07,184.05,8.04971744]
[1755288461840,0.7,184.06,184.02,48.06971744]
[1755288462141,0.7,184.06,184.03,8.04971744]
[1755288462350,0.06,184.07,184.03,8.04971744]
[1755288462512,0.76,184.07,184.02,45.45417906]
[1755288462714,0.7,184.06,184.02,48.06971744]
[1755288462911,8.74971744,184.05,183.99,53.50452583]
[1755288463311,8.74971744,184.05,184.0,8.04971744]
[1755288463541,0.7,184.05,184.01,8.04971744]
[1755288464647,8.04971744,184.03,183.99,40.02]
[1755288464818,34.74971744,184.02,183.99,40.02]
[1755288465021,8.04971744,184.0,183.98,0.03]
[1755288465240,8.04971744,183.99,183.98,0.03]
[1755288465541,8.69971744,183.99,183.98,0.03]
[1755288465730,0.65,183.99,183.98,0.03]
[1755288465929,8.04971744,184.0,183.98,0.03]
[1755288466145,26.65,184.02,183.98,0.03]
[1755288466445,34.69971744,184.02,183.98,0.03]
[1755288466631,26.65,184.02,183.98,0.03]
[1755288467130,34.69971744,184.02,183.98,0.03]
[1755288467451,0.65,184.01,183.98,0.03]
[1755288468049,8.04971744,183.99,183.98,0.03]
[1755288468343,13.48479543,183.99,183.98,0.03]
[1755288468542,14.13479543,183.99,183.98,0.03]
[1755288469131,29.241011,183.99,183.98,0.03]
[1755288469336,32.83676704,183.99,183.98,0.03]
[1755288470139,29.241011,183.99,183.98,0.03]
[1755288470648,8.69971744,183.99,183.98,0.03]
[1755288471055,14.13479543,183.99,183.98,0.03]
[1755288471554,29.241011,183.99,183.98,0.03]
[1755288471733,54.13479543,183.99,183.98,0.03]
[1755288474031,69.241011,183.99,183.98,0.03]
[1755288474533,69.241011,183.99,183.96,0.03]
[1755288474534,41.10621557,183.97,183.96,0.03]
[1755288474737,26.7495217,183.97,183.96,0.03]
[1755288475055,27.3995217,183.97,183.96,1e-08]
[1755288475832,32.83519055,183.97,183.96,1e-08]
[1755288478663,28.59160186,183.97,183.96,1e-08]
[1755288478952,69.24160186,183.97,183.96,1e-08]
[1755288479359,72.83934027,183.97,183.96,1e-08]
[1755288479560,53.48538629,183.97,183.96,1e-08]
[1755288479748,48.04971744,183.97,183.96,1e-08]
[1755288479935,79.48538629,183.97,183.96,1e-08]
[1755288480137,40.0,183.97,183.96,1e-08]
[1755288480340,53.48538629,183.97,183.96,1e-08]
[1755288480936,54.13538629,183.97,183.96,1e-08]
[1755288481340,48.04971744,183.97,183.96,1e-08]
[1755288481847,26.0,183.97,183.96,1e-08]
[1755288482036,34.04971744,183.97,183.96,1e-08]
[1755288482749,93.40903703,183.97,183.96,1e-08]
[1755288483742,92.75903703,183.97,183.96,1e-08]
[1755288484134,98.19470588,183.97,183.96,1e-08]
[1755288484340,90.79498844,183.97,183.96,1e-08]
[1755288484557,98.84470588,183.97,183.96,1e-08]
[1755288485058,8.04971744,184.01,183.96,8.58971745]
[1755288485242,3.60669467,184.01,183.97,8.58971744]
[1755288485454,3.60669467,184.01,183.98,8.58971744]
[1755288485645,0.06,184.02,183.99,0.54]
[1755288485841,0.06,184.02,183.96,1e-08]
[1755288485842,0.06,184.02,184.01,8.04971744]
[1755288486458,0.06,184.02,184.0,13.48425243]
[1755288486669,0.06,184.02,184.0,5.43453499]
[1755288486850,0.06,184.02,184.01,8.58971744]
[1755288487449,0.06,184.02,183.98,0.54]
[1755288487771,0.06,184.02,184.01,8.04971744]
[1755288488269,0.06,184.02,184.01,14.02420469]
[1755288488850,0.06,184.04,184.02,15.10621557]
[1755288489068,0.06,184.04,184.03,0.54338966]
[1755288489269,0.06,184.04,184.03,9.1331071]
[1755288489569,0.06,184.06,184.04,15.10621557]
[1755288489758,0.06,184.06,184.05,8.04971744]
[1755288489963,0.06,184.06,184.05,8.58971744]
[1755288490343,0.06,184.06,184.04,5.43340581]
[1755288490557,3.6720879,184.06,184.02,8.04971744]
[1755288490875,0.06,184.06,184.02,8.04971744]
[1755288491756,0.06,184.06,184.02,14.02379399]
[1755288491957,8.10971744,184.06,184.01,8.04971744]
[1755288492263,8.75971744,184.06,184.0,53.44420788]
[1755288493103,8.10971744,184.06,184.01,8.04971744]
[1755288493377,8.10971744,184.06,184.0,45.39449044]
[1755288493378,8.04971744,184.04,184.0,39.96]
[1755288493579,14.13372552,184.03,184.0,39.96]
[1755288493944,14.13372552,184.03,183.97,13.48533492]
[1755288494465,6.08400808,184.03,183.97,13.48533492]
[1755288494646,8.04971744,184.02,183.97,13.48533492]
[1755288494845,8.69971744,184.02,183.96,124.59590008]
[1755288495068,6.08430201,184.02,183.96,39.96000001]
[1755288495968,6.08430201,184.02,183.96,48.00971745]
[1755288496269,6.08430201,184.02,183.96,39.96000001]
[1755288497074,8.04971744,184.03,183.97,8.58971744]
[1755288497567,13.48361724,184.03,183.97,8.58971744]
[1755288498073,8.04971744,184.02,183.97,0.54]
[1755288498258,0.67,184.02,183.96,39.96000001]
[1755288498772,5.43448725,184.01,183.96,39.96000001]
[1755288498951,0.67,184.0,183.96,39.96000001]
[1755288500874,31.43419193,184.02,183.96,40.50000001]
[1755288501248,31.43419193,184.02,183.96,53.98551773]
[1755288501448,34.04971744,184.02,183.96,53.98551773]
[1755288501676,26.0,184.02,183.97,8.04971744]
[1755288502164,26.0,184.02,183.97,8.58971744]
[1755288502373,0.06,184.05,184.01,8.04971744]
[1755288502573,0.06,184.05,184.04,8.04971744]
[1755288503078,0.06,184.05,184.04,16.20030783]
[1755288503980,0.06,184.08,184.07,26.0]
[1755288504149,1e-08,184.08,184.07,89.09593301]
[1755288504357,1e-08,184.09,184.08,15.10621557]
[1755288504553,1e-08,184.09,184.08,24.23917507]
[1755288504757,1e-08,184.09,184.08,47.98971744]
[1755288504984,1e-08,184.09,184.07,8.04971744]
[1755288505294,1e-08,184.09,184.08,47.98971744]
[1755288505593,1e-08,184.09,184.08,63.63917507]
[1755288505778,0.06,184.11,184.1,41.10621557]
[1755288506082,0.06,184.11,184.1,49.15593301]
[1755288506277,0.06,184.11,184.1,49.69593301]
[1755288506588,0.06,184.11,184.1,0.54]
[1755288506770,0.06,184.11,184.1,39.94]
[1755288507074,0.06,184.11,184.1,53.96154796]
[1755288509488,0.06,184.11,184.1,53.42154796]
[1755288510073,0.06,184.11,184.1,132.62154796]
[1755288511364,0.06,184.11,184.1,92.68154796]
[1755288511563,0.06,184.11,184.1,133.14154796]
[1755288512022,0.06,184.11,184.1,132.60154796]
[1755288512789,0.06,184.11,184.1,133.14154796]
[1755288513163,0.06,184.11,184.1,148.24776353]
[1755288514199,0.06,184.11,184.1,147.70776353]
[1755288514519,0.73,184.11,184.1,87.24971744]
[1755288514676,0.06,184.11,184.1,132.60154796]
[1755288517583,8.77971744,184.11,184.07,79.2]
[1755288517805,8.04971744,184.09,184.07,79.2]
[1755288518002,8.04971744,184.09,184.08,39.9]
[1755288518594,0.67,184.09,184.08,39.9]
[1755288519494,14.15190603,184.09,184.07,0.03]
[1755288519696,8.04971744,184.08,184.07,0.03]
[1755288519883,8.71971744,184.08,184.07,0.03]
[1755288521387,14.15213812,184.08,184.07,0.03]
[1755288522389,17.74888929,184.08,184.07,0.03]
[1755288522896,12.31646861,184.08,184.07,0.03]
[1755288523098,26.67,184.08,184.07,0.03]
[1755288524714,8.04971744,184.1,184.07,0.03]
[1755288524931,0.06,184.11,184.09,8.04971744]
[1755288525228,0.06,184.11,184.1,53.38154796]
[1755288525385,0.06,184.11,184.1,53.92154796]
[1755288525783,0.06,184.11,184.1,53.38154796]
[1755288526014,0.06,184.11,184.1,133.12154796]
[1755288526404,1e-08,184.12,184.11,15.10621557]
[1755288526618,1e-08,184.12,184.11,103.43908655]
[1755288526782,1e-08,184.12,184.11,102.89593301]
[1755288526989,1e-08,184.13,184.11,102.89593301]
[1755288527201,1e-08,184.13,184.12,63.59593301]
[1755288527509,1e-08,184.13,184.12,69.57029754]
[1755288531092,1e-08,184.13,184.12,69.03029754]
[1755288531288,1e-08,184.13,184.12,53.38095793]
[1755288531495,1e-08,184.13,184.12,53.36095793]
[1755288533019,1e-08,184.13,184.12,69.0071735]
[1755288533208,1e-08,184.13,184.12,69.55029754]
[1755288533411,1e-08,184.17,184.15,26.0]
[1755288533714,0.1,184.21,184.16,63.03593301]
[1755288533890,0.1,184.21,184.2,8.04971744]
[1755288534094,0.1,184.21,184.2,127.12971743]
[1755288535205,0.1,184.21,184.2,132.55859908]
[1755288535817,0.1,184.21,184.2,124.50888164]
[1755288536002,0.8,184.21,184.2,79.19999999]
[1755288536210,0.8,184.21,184.2,119.05999999]
[1755288536402,0.8,184.21,184.2,127.10971743]
[1755288536605,0.8,184.21,184.2,132.53859908]
[1755288536811,0.1,184.21,184.2,132.53859908]
[1755288537046,0.8,184.21,184.2,132.53859908]
[1755288537199,0.1,184.21,184.2,132.53859908]
[1755288538347,0.1,184.21,184.2,148.18481465]
[1755288538734,0.06,184.25,184.23,26.0]
[1755288538951,0.06,184.25,184.24,63.01593301]
[1755288539103,0.06,184.25,184.24,64.0987033]
[1755288539308,0.06,184.25,184.24,69.52640629]
[1755288540112,1e-08,184.25,184.24,148.72640628]
[1755288540314,1e-08,184.25,184.24,148.18363599]
[1755288540514,1e-08,184.25,184.24,147.64363599]
[1755288540733,1e-08,184.25,184.24,148.18363599]
[1755288541645,0.70000001,184.25,184.22,13.47800969]
[1755288541938,0.7,184.24,184.23,39.86]
[1755288542525,0.7,184.24,184.23,47.90971744]
[1755288542729,0.7,184.24,184.23,39.86]
[1755288542911,0.7,184.24,184.23,47.90971744]
[1755288543432,0.7,184.24,184.23,39.86]
[1755288544741,8.74971744,184.24,184.23,39.86]
[1755288544910,0.7,184.24,184.23,39.86]
[1755288547249,14.17742043,184.24,184.17,92.67927396]
[1755288547542,8.04971744,184.21,184.18,39.84]
[1755288547746,0.7,184.2,184.19,39.84]
[1755288549658,17.78762315,184.2,184.13,8.04971744]
[1755288549823,8.04971744,184.18,184.14,39.84]
[1755288550030,0.7,184.17,184.14,39.84]
[1755288550228,11.6579894,184.19,184.14,47.88971744]
[1755288550428,8.74971744,184.19,184.14,47.88971744]
[1755288550943,0.7,184.18,184.14,47.88971744]
[1755288551333,8.74971744,184.22,184.17,8.04971744]
[1755288551559,8.74971744,184.22,184.16,5.43006081]
[1755288551560,26.0,184.21,184.18,47.88971744]
[1755288551725,0.7,184.22,184.19,8.04971744]
[1755288551927,0.7,184.22,184.2,39.84]
[1755288552126,3.60742082,184.23,184.21,8.04971744]
[1755288552328,1e-08,184.25,184.22,47.88971744]
[1755288552728,0.7,184.24,184.22,47.88971744]
[1755288553259,1e-08,184.25,184.23,8.04971744]
[1755288553559,1e-08,184.25,184.24,45.26770299]
[1755288554062,1e-08,184.25,184.24,53.85742043]
[1755288554559,1e-08,184.25,184.24,54.40019072]
[1755288555251,1e-08,184.25,184.24,45.81047328]
[1755288555457,1e-08,184.25,184.24,53.31742043]
[1755288556563,0.06,184.27,184.25,15.10621557]
[1755288556734,0.06,184.27,184.26,63.53864439]
[1755288557082,0.06,184.27,184.26,64.07864439]
[1755288557866,0.06,184.27,184.26,69.50575825]
[1755288559338,0.06,184.27,184.26,53.85954268]
[1755288559553,0.06,184.27,184.26,53.3168313]
[1755288559931,0.06,184.27,184.26,13.4768313]
[1755288560138,0.06,184.27,184.26,53.2968313]
[1755288562650,1e-08,184.29,184.28,90.05858549]
[1755288563660,1e-08,184.29,184.28,95.48511034]
[1755288564169,1e-08,184.29,184.28,94.40245786]
[1755288566171,1e-08,184.29,184.28,13.47624229]
[1755288566379,1e-08,184.29,184.28,53.27624229]
[1755288567041,1e-08,184.29,184.28,132.47624229]
[1755288569688,1e-08,184.29,184.28,147.58245786]
[1755288570552,1e-08,184.29,184.28,148.12245786]
[1755288570756,1e-08,184.29,184.28,94.92245786]
[1755288570972,1e-08,184.29,184.28,95.46511034]
[1755288571271,1e-08,184.3,184.29,15.10621557]
[1755288571581,1e-08,184.3,184.29,108.3221634]
[1755288571943,0.06,184.33,184.32,41.10621557]
[1755288572141,0.06,184.33,184.32,88.93593301]
[1755288573183,0.06,184.35,184.33,15.10621557]
[1755288573351,0.06,184.35,184.34,62.93593301]
[1755288573549,0.06,184.35,184.34,68.3606916]
[1755288574360,0.06,184.35,184.34,68.9006916]
[1755288574675,0.06,184.37,184.34,68.9006916]
[1755288574981,0.06,184.37,184.36,8.04971744]
[1755288575157,0.06,184.37,184.36,47.82971744]
[1755288575367,0.75,184.37,184.36,47.82971744]
[1755288575555,0.75,184.37,184.36,53.25388754]
[1755288577578,0.06,184.37,184.36,53.25388754]
[1755288577757,0.06,184.37,184.36,68.90010311]
[1755288577954,0.06,184.39,184.37,15.10621557]
[1755288578268,0.06,184.39,184.38,47.80971744]
[1755288578577,0.06,184.39,184.38,48.34971744]
[1755288578759,0.06,184.39,184.38,53.23329917]
[1755288579075,1e-08,184.39,184.38,68.33951474]
[1755288581273,1e-08,184.41,184.4,49.15593301]
[1755288581477,1e-08,184.44,184.4,62.91593301]
[1755288581775,1e-08,184.44,184.43,49.15593301]
[1755288581974,1e-08,184.44,184.43,88.91593301]
[1755288582176,1e-08,184.45,184.43,89.45593301]
[1755288582380,0.69,184.51,184.47,26.0]
[1755288582685,0.69,184.51,184.5,8.04971744]
[1755288582888,0.69,184.51,184.5,47.80971744]
[1755288583185,0.69,184.51,184.5,53.22977164]
[1755288583391,0.69,184.53,184.5,53.22977164]
[1755288583592,0.69,184.53,184.52,8.04971744]
[1755288583770,8.04971744,184.57,184.52,47.78971744]
[1755288583968,11.66796129,184.58,184.52,47.78971744]
[1755288584185,0.69,184.57,184.52,47.78971744]
[1755288585481,0.69,184.57,184.53,13.46889047]
[1755288585681,0.72,184.56,184.54,47.78971744]
[1755288586004,0.72,184.56,184.55,8.04971744]
[1755288586499,11.66796129,184.6,184.55,8.04971744]
[1755288586700,3.61824385,184.6,184.56,39.74]
[1755288587002,0.72,184.59,184.56,39.74]
[1755288587693,8.04971744,184.58,184.56,39.74]
[1755288588001,8.76971744,184.57,184.52,39.72]
[1755288588304,0.72,184.56,184.52,39.72]
[1755288588463,8.04971744,184.55,184.52,39.72]
[1755288588669,0.72,184.54,184.52,39.72]
[1755288588877,0.72,184.57,184.53,8.04971744]
[1755288589076,0.72,184.56,184.54,47.76971744]
[1755288589288,8.76971744,184.56,184.54,39.72]
[1755288589622,0.72,184.55,184.54,39.72]
[1755288589989,8.76971744,184.55,184.54,39.72]
[1755288590406,8.76971744,184.55,184.53,39.72]
[1755288590580,0.72,184.54,184.53,39.72]
[1755288590994,8.76971744,184.54,184.48,13.47027946]
[1755288591196,8.76971744,184.53,184.48,13.47027946]
[1755288591501,0.72,184.52,184.49,39.72]
[1755288591705,0.72,184.51,184.49,39.72]
[1755288592100,0.72,184.5,184.49,39.72]
[1755288592305,0.72,184.54,184.49,47.76971744]
[1755288592525,0.72,184.56,184.49,45.68034798]
[1755288592701,26.0,184.57,184.54,8.04971744]
[1755288592902,0.72,184.58,184.55,47.76971744]
[1755288593219,0.72,184.58,184.56,39.72]
[1755288593603,0.72,184.57,184.56,39.72]
[1755288594421,0.72,184.6,184.56,39.72]
[1755288594638,0.72,184.59,184.56,39.72]
[1755288594829,0.72,184.58,184.56,39.72]
[1755288594995,0.72,184.58,184.56,45.13823008]
[1755288595720,0.72,184.58,184.55,39.7]
[1755288595721,0.72,184.57,184.55,39.7]
[1755288595942,0.72,184.56,184.55,39.7]
[1755288596298,0.72,184.59,184.55,47.74971744]
[1755288596494,0.72,184.58,184.55,39.7]
[1755288596693,8.04971744,184.6,184.55,39.7]
[1755288596896,0.72,184.57,184.55,39.7]
[1755288597825,0.72,184.57,184.55,45.11847922]
[1755288598224,0.72,184.59,184.55,45.11847922]
[1755288598632,8.04971744,184.6,184.55,45.11847922]
[1755288598810,0.72,184.58,184.55,53.16819666]
[1755288599201,0.72,184.58,184.55,47.74971744]
[1755288599831,26.0,184.62,184.55,47.74971744]
[1755288599832,8.76971744,184.57,184.55,39.7]
[1755288600006,0.72,184.56,184.55,39.7]
[1755288600336,0.72,184.56,184.46,8.049717]
[1755288600337,34.76971744,184.56,184.47,5.42093565]
[1755288600504,8.04971744,184.51,184.48,39.7]
[1755288600827,0.72,184.51,184.48,39.7]
[1755288601128,0.72,184.5,184.48,39.7]
[1755288601501,8.76971744,184.53,184.49,5.42034798]
[1755288601703,8.04971744,184.53,184.48,45.1205622]
[1755288601904,0.72,184.52,184.48,53.17027964]
[1755288602312,12.37092636,184.55,184.5,8.04971744]
[1755288602628,8.76971744,184.54,184.51,39.68]
[1755288603317,8.04971744,184.54,184.51,39.68]
[1755288603523,8.04971744,184.52,184.51,39.68]
[1755288603703,8.04971744,184.52,184.49,39.68]
[1755288604031,8.76971744,184.51,184.49,39.68]
[1755288604401,11.65231671,184.53,184.49,39.68]
[1755288604605,8.04971744,184.56,184.51,8.04971744]
[1755288604824,0.72,184.56,184.52,39.68]
[1755288605633,11.65260849,184.57,184.52,45.09921727]
[1755288605842,11.65260849,184.57,184.52,53.14893471]
[1755288606042,12.37260849,184.57,184.52,53.14893471]